fUST/lending_fUST_20250303
["ID","MTS","AMOUNT","RATE_DAILY","PERIOD"]
[355131324,1740931847386,-1420.55,0.00025479,2]
[355131325,1740931847397,-2499.17,0.00025479,2]
[355131326,1740931847408,-1441.92,0.00025479,2]
[355131327,1740931847419,-2250.15,0.00025479,2]
[355131328,1740931847430,-500.0,0.00025479,2]
[355131329,1740931847441,-500.0,0.00025479,2]
[355131330,1740931847453,-500.0,0.00025479,2]
[355131331,1740931847464,-731.56,0.00025479,2]
[355131332,1740931847474,-731.27,0.00025479,2]
[355131333,1740931847484,-2383.43,0.00025479,2]
[355131334,1740931847495,-500.0,0.00025479,2]
[355131335,1740931847506,-2642.29,0.00025479,2]
[355131336,1740931847516,-500.0,0.00025479,2]
[355131338,1740931847529,-1052.64,0.00025479,2]
[355131340,1740931847539,-500.0,0.00025479,2]
[355131342,1740931847550,-1268.84,0.00025479,2]
[355131343,1740931847560,-1701.5,0.00025479,2]
[355131345,1740931847572,-1699.9,0.00025479,2]
[355131347,1740931847582,-500.0,0.00025479,2]
[355131349,1740931847594,-3994.28,0.00025479,2]
[355131351,1740931847604,-34644.2,0.00025479,2]
[355131353,1740931847614,-500.0,0.00025479,2]
[355131355,1740931847624,-835.41,0.00025479,2]
[355131357,1740931847634,-500.0,0.00025479,2]
[355131359,1740931847644,-1179.27,0.00025479,2]
[355131361,1740931847656,-751.4,0.00025479,2]
[355131363,1740931847665,-500.0,0.00025479,2]
[355131365,1740931847675,-708.51,0.00025479,2]
[355131367,1740931847686,-2272.72,0.00025479,2]
[355131369,1740931847696,-500.0,0.00025479,2]
[355131371,1740931847706,-500.0,0.00025479,2]
[355131373,1740931847716,-1043.26,0.00025479,2]
[355131375,1740931847726,-797.53,0.00025479,2]
[355131377,1740931847736,-1015.63,0.00025479,2]
[355131379,1740931847746,-879.33,0.00025479,2]
[355131381,1740931847758,-600.93,0.00025479,2]
[355131383,1740931847767,-2848.35484283,0.0002551,2]
[355131385,1740931847780,-500.0,0.00025753,2]
[355131387,1740931847790,-328.59,0.00025753,2]
[355131389,1740931847802,-1420.55,0.00025753,2]
[355131391,1740931847811,-2499.17,0.00025753,2]
[355131393,1740931847822,-1441.92,0.00025753,2]
[355131395,1740931847831,-2250.15,0.00025753,2]
[355131397,1740931847842,-500.0,0.00025753,2]
[355131399,1740931847852,-500.0,0.00025753,2]
[355131401,1740931847863,-500.0,0.00025753,2]
[355131402,1740931847872,-731.56,0.00025753,2]
[355131404,1740931847887,-731.27,0.00025753,2]
[355131406,1740931847897,-2383.43,0.00025753,2]
[355131408,1740931847908,-500.0,0.00025753,2]
[355131410,1740931847919,-2642.29,0.00025753,2]
[355131412,1740931847929,-500.0,0.00025753,2]
[355131414,1740931847939,-1052.64,0.00025753,2]
[355131416,1740931847953,-500.0,0.00025753,2]
[355131418,1740931847964,-1268.84,0.00025753,2]
[355131420,1740931847975,-1701.5,0.00025753,2]
[355131422,1740931847986,-1699.9,0.00025753,2]
[355131424,1740931847996,-500.0,0.00025753,2]
[355131426,1740931848006,-3994.28,0.00025753,2]
[355131428,1740931848017,-34644.2,0.00025753,2]
[355131430,1740931848030,-500.0,0.00025753,2]
[355131432,1740931848040,-835.41,0.00025753,2]
[355131434,1740931848054,-500.0,0.00025753,2]
[355131436,1740931848066,-1179.27,0.00025753,2]
[355131438,1740931848077,-751.4,0.00025753,2]
[355131440,1740931848088,-500.0,0.00025753,2]
[355131442,1740931848098,-708.51,0.00025753,2]
[355131444,1740931848110,-2272.72,0.00025753,2]
[355131446,1740931848120,-617.36,0.00025753,2]
[355131448,1740931848131,-500.0,0.00025753,2]
[355131450,1740931848143,-1043.26,0.00025753,2]
[355131451,1740931848156,-797.53,0.00025753,2]
[355131452,1740931848167,-1015.63,0.00025753,2]
[355131453,1740931848180,-879.33,0.00025753,2]
[355131454,1740931848191,-600.93,0.00025753,2]
[355131455,1740931848203,-25000.0,0.00026,7]
[355131456,1740931848213,-206285.04396038,0.00026,60]
[355131457,1740931848224,-10000.0,0.00026,3]
[355131458,1740931848235,-160.0,0.00026,3]
[355131459,1740931848245,-160.0,0.00026,7]
[355131460,1740931848256,-500.0,0.00026027,2]
[355131461,1740931848267,-1420.55,0.00026027,2]
[355131462,1740931848282,-2499.17,0.00026027,2]
[355131463,1740931848293,-1441.92,0.00026027,2]
[355131464,1740931848305,-2250.15,0.00026027,2]
[355131465,1740931848316,-500.0,0.00026027,2]
[355131466,1740931848327,-500.0,0.00026027,2]
[355131468,1740931848337,-637.65065371,0.00026027,2]
[355131470,1740931848348,-731.56,0.00026027,2]
[355131472,1740931848358,-731.27,0.00026027,2]
[355131474,1740931848369,-2383.43,0.00026027,2]
[355131476,1740931848380,-500.0,0.00026027,2]
[355131478,1740931848390,-2642.29,0.00026027,2]
[355131480,1740931848400,-566.79,0.00026027,2]
[355131482,1740931848410,-1052.64,0.00026027,2]
[355131484,1740931848421,-500.0,0.00026027,2]
[355131486,1740931848431,-1268.84,0.00026027,2]
[355131488,1740931848442,-1701.5,0.00026027,2]
[355131490,1740931848452,-1699.9,0.00026027,2]
[355131492,1740931848463,-500.0,0.00026027,2]
[355131494,1740931848474,-3994.28,0.00026027,2]
[355131496,1740931848484,-34644.2,0.00026027,2]
[355131498,1740931848494,-500.0,0.00026027,2]
[355131500,1740931848504,-835.41,0.00026027,2]
[355131502,1740931848515,-500.0,0.00026027,2]
[355131503,1740931848528,-1179.27,0.00026027,2]
[355131504,1740931848539,-751.4,0.00026027,2]
[355131505,1740931848549,-500.0,0.00026027,2]
[355131506,1740931848560,-708.51,0.00026027,2]
[355131507,1740931848571,-2272.72,0.00026027,2]
[355131508,1740931848582,-500.0,0.00026027,2]
[355131509,1740931848592,-1043.26,0.00026027,2]
[355131510,1740931848604,-797.53,0.00026027,2]
[355131511,1740931848614,-1015.63,0.00026027,2]
[355131512,1740931848625,-879.33,0.00026027,2]
[355131514,1740931848636,-600.93,0.00026027,2]
[355131516,1740931848647,-772.843465,0.00026208,2]
[355131518,1740931848657,-500.0,0.00026301,2]
[355131520,1740931848669,-1420.55,0.00026301,2]
[355131522,1740931848680,-2499.17,0.00026301,2]
[355131524,1740931848693,-1441.92,0.00026301,2]
[355131526,1740931848704,-2250.15,0.00026301,2]
[355131528,1740931848716,-500.0,0.00026301,2]
[355131530,1740931848727,-500.0,0.00026301,2]
[355131532,1740931848737,-731.56,0.00026301,2]
[355131534,1740931848749,-731.27,0.00026301,2]
[355131536,1740931848760,-2383.43,0.00026301,2]
[355131538,1740931848770,-500.0,0.00026301,2]
[355131540,1740931848785,-2642.29,0.00026301,2]
[355131542,1740931848795,-1052.64,0.00026301,2]
[355131543,1740931848806,-500.0,0.00026301,2]
[355131545,1740931848817,-1268.84,0.00026301,2]
[355131547,1740931848827,-1701.5,0.00026301,2]
[355131549,1740931848838,-1699.9,0.00026301,2]
[355131551,1740931848848,-500.0,0.00026301,2]
[355131553,1740931848858,-3994.28,0.00026301,2]
[355131554,1740931848869,-34644.2,0.00026301,2]
[355131556,1740931848881,-500.0,0.00026301,2]
[355131558,1740931848892,-835.41,0.00026301,2]
[355131560,1740931848907,-500.0,0.00026301,2]
[355131562,1740931848917,-1179.27,0.00026301,2]
[355131564,1740931848928,-751.4,0.00026301,2]
[355131565,1740931848939,-500.0,0.00026301,2]
[355131566,1740931848950,-708.51,0.00026301,2]
[355131567,1740931848961,-2272.72,0.00026301,2]
[355131568,1740931848972,-500.0,0.00026301,2]
[355131569,1740931848983,-1043.26,0.00026301,2]
[355131570,1740931848994,-797.53,0.00026301,2]
[355131571,1740931849004,-1015.63,0.00026301,2]
[355131573,1740931849015,-879.33,0.00026301,2]
[355131575,1740931849028,-2053.0,0.000265,12]
[355131577,1740931849038,-500.0,0.00026575,2]
[355131578,1740931849048,-1420.55,0.00026575,2]
[355131579,1740931849058,-2499.17,0.00026575,2]
[355131580,1740931849070,-1441.92,0.00026575,2]
[355131581,1740931849081,-2250.15,0.00026575,2]
[355131582,1740931849093,-500.0,0.00026575,2]
[355131583,1740931849103,-500.0,0.00026575,2]
[355131584,1740931849114,-731.56,0.00026575,2]
[355131585,1740931849124,-731.27,0.00026575,2]
[355131586,1740931849135,-2383.43,0.00026575,2]
[355131587,1740931849145,-500.0,0.00026575,2]
[355131588,1740931849155,-2642.29,0.00026575,2]
[355131589,1740931849166,-1052.64,0.00026575,2]
[355131590,1740931849178,-500.0,0.00026575,2]
[355131591,1740931849190,-1268.84,0.00026575,2]
[355131592,1740931849200,-1701.5,0.00026575,2]
[355131593,1740931849211,-1699.9,0.00026575,2]
[355131594,1740931849221,-500.0,0.00026575,2]
[355131595,1740931849232,-3994.28,0.00026575,2]
[355131596,1740931849243,-34644.2,0.00026575,2]
[355131597,1740931849254,-500.0,0.00026575,2]
[355131598,1740931849264,-835.41,0.00026575,2]
[355131599,1740931849274,-500.0,0.00026575,2]
[355131600,1740931849290,-1179.27,0.00026575,2]
[355131601,1740931849301,-751.4,0.00026575,2]
[355131602,1740931849312,-500.0,0.00026575,2]
[355131603,1740931849322,-708.51,0.00026575,2]
[355131604,1740931849333,-2272.72,0.00026575,2]
[355131605,1740931849343,-500.0,0.00026575,2]
[355131606,1740931849353,-1043.26,0.00026575,2]
[355131607,1740931849364,-797.53,0.00026575,2]
[355131608,1740931849374,-1015.63,0.00026575,2]
[355131609,1740931849384,-879.33,0.00026575,2]
[355131610,1740931849394,-247.73901271,0.00026849,2]
[355131611,1740931849405,-1420.55,0.00026849,2]
[355131612,1740931849602,-2499.17,0.00026849,2]
[355131613,1740931849613,-1441.92,0.00026849,2]
[355131614,1740931849624,-2250.15,0.00026849,2]
[355131615,1740931849635,-500.0,0.00026849,2]
[355131616,1740931849646,-500.0,0.00026849,2]
[355131617,1740931849656,-731.56,0.00026849,2]
[355131618,1740931849667,-731.27,0.00026849,2]
[355131619,1740931849677,-2383.43,0.00026849,2]
[355131620,1740931849687,-457.94909895,0.00026849,2]
[355131621,1740931849698,-2642.29,0.00026849,2]
[355131622,1740931849708,-1052.64,0.00026849,2]
[355131623,1740931849718,-500.0,0.00026849,2]
[355131624,1740931849729,-1268.84,0.00026849,2]
[355131625,1740931849739,-1701.5,0.00026849,2]
[355131626,1740931849749,-1699.9,0.00026849,2]
[355131627,1740931849758,-539.5712693,0.00026849,2]
[355131628,1740931849769,-3994.28,0.00026849,2]
[355131629,1740931849783,-34644.2,0.00026849,2]
[355131630,1740931849793,-500.0,0.00026849,2]
[355131631,1740931849802,-835.41,0.00026849,2]
[355131632,1740931849813,-500.0,0.00026849,2]
[355131633,1740931849823,-1179.27,0.00026849,2]
[355131634,1740931849833,-751.4,0.00026849,2]
[355131635,1740931849843,-512.72,0.00026849,2]
[355131636,1740931849853,-708.51,0.00026849,2]
[355131637,1740931849863,-2272.72,0.00026849,2]
[355131638,1740931849873,-500.0,0.00026849,2]
[355131639,1740931849888,-1043.26,0.00026849,2]
[355131640,1740931849898,-797.53,0.00026849,2]
[355131641,1740931849908,-1015.63,0.00026849,2]
[355131642,1740931849917,-879.33,0.00026849,2]
[355131643,1740931849929,-195.95,0.000269,7]
[355131644,1740931849938,-25000.0,0.00027,8]
[355131645,1740931849948,-3632.10935758,0.00027,2]
[355131646,1740931849958,-337.17640358,0.00027,2]
[355131648,1740931849969,-160.0,0.00027,10]
[355131650,1740931849980,-656.29987,0.00027,120]
[355131652,1740931849990,-10000.0,0.00027,3]
[355131655,1740931850000,-179.39007375,0.0002704,2]
[355131657,1740931850010,-1000.0,0.00027052,2]
[355131659,1740931850020,-1000.0,0.00027052,2]
[355131661,1740931850033,-1000.0,0.00027052,2]
[355131663,1740931850043,-219.0,0.00027064,2]
[355131665,1740931850054,-1420.55,0.00027123,2]
[355131667,1740931850063,-2499.17,0.00027123,2]
[355131669,1740931850073,-1441.92,0.00027123,2]
[355131671,1740931850083,-2250.15,0.00027123,2]
[355131673,1740931850093,-500.0,0.00027123,2]
[355131675,1740931850102,-500.0,0.00027123,2]
[355131677,1740931850112,-731.56,0.00027123,2]
[355131679,1740931850122,-731.27,0.00027123,2]
[355131681,1740931850132,-2383.43,0.00027123,2]
[355131683,1740931850141,-2642.29,0.00027123,2]
[355131685,1740931850151,-1052.64,0.00027123,2]
[355131687,1740931850160,-500.0,0.00027123,2]
[355131689,1740931850171,-1268.84,0.00027123,2]
[355131690,1740931850181,-1701.5,0.00027123,2]
[355131692,1740931850191,-1699.9,0.00027123,2]
[355131694,1740931850201,-3994.28,0.00027123,2]
[355131696,1740931850215,-34644.2,0.00027123,2]
[355131698,1740931850224,-500.0,0.00027123,2]
[355131700,1740931850234,-835.41,0.00027123,2]
[355131701,1740931850245,-500.0,0.00027123,2]
[355131702,1740931850255,-1179.27,0.00027123,2]
[355131703,1740931850265,-751.4,0.00027123,2]
[355131704,1740931850280,-708.51,0.00027123,2]
[355131705,1740931850290,-2272.72,0.00027123,2]
[355131706,1740931850300,-500.0,0.00027123,2]
[355131707,1740931850310,-1043.26,0.00027123,2]
[355131708,1740931850320,-797.53,0.00027123,2]
[355131709,1740931850330,-1015.63,0.00027123,2]
[355131710,1740931850338,-879.33,0.00027123,2]
[355131711,1740931850348,-22763.45625532,0.00027195,2]
[355131712,1740931850359,-823.0,0.00027213,2]
[355131713,1740931850369,-500.47108357,0.00027397,2]
[355131715,1740931850379,-500.0,0.00027397,2]
[355131717,1740931850389,-500.0,0.00027397,2]
[355131719,1740931850399,-500.0,0.00027397,2]
[355131721,1740931850409,-500.0,0.00027397,2]
[355131723,1740931850418,-500.0,0.00027397,2]
[355131725,1740931850428,-500.0,0.00027397,2]
[355131727,1740931850438,-500.0,0.00027397,2]
[355131729,1740931850447,-500.0,0.00027397,2]
[355131731,1740931850457,-500.0,0.00027397,2]
[355131732,1740931850467,-176.38040714,0.00027397,2]
[355131734,1740931850477,-1000.0,0.00027397,5]
[355131735,1740931850486,-1000.0,0.00027397,5]
[355131737,1740931850496,-1000.0,0.00027397,5]
[355131739,1740931850506,-316.38792659,0.00027397,5]
[355131741,1740931850516,-3000.0,0.00027397,120]
[355131743,1740931850530,-600.37494551,0.00027397,120]
[355131745,1740931850541,-1420.55,0.00027397,2]
[355131747,1740931850551,-2499.17,0.00027397,2]
[355131748,1740931850562,-1441.92,0.00027397,2]
[355131750,1740931850572,-2250.15,0.00027397,2]
[355131751,1740931850583,-500.0,0.00027397,2]
[355131752,1740931850594,-731.56,0.00027397,2]
[355131753,1740931850605,-731.27,0.00027397,2]
[355131754,1740931850615,-2383.43,0.00027397,2]
[355131755,1740931850625,-2642.29,0.00027397,2]
[355131756,1740931850635,-500.0,0.00027397,2]
[355131757,1740931850645,-1052.64,0.00027397,2]
[355131758,1740931850655,-380.60279728,0.00027397,2]
[355131759,1740931850665,-1268.84,0.00027397,2]
[355131761,1740931850675,-1701.5,0.00027397,2]
[355131763,1740931850685,-1699.9,0.00027397,2]
[355131764,1740931850696,-3994.28,0.00027397,2]
[355131766,1740931850706,-34644.2,0.00027397,2]
[355131767,1740931850716,-500.0,0.00027397,2]
[355131769,1740931850726,-835.41,0.00027397,2]
[355131771,1740931850736,-500.0,0.00027397,2]
[355131773,1740931850746,-1179.27,0.00027397,2]
[355131775,1740931850755,-751.4,0.00027397,2]
[355131776,1740931850766,-708.51,0.00027397,2]
[355131778,1740931850779,-2272.72,0.00027397,2]
[355131780,1740931850790,-500.0,0.00027397,2]
[355131781,1740931850800,-1043.26,0.00027397,2]
[355131782,1740931850810,-797.53,0.00027397,2]
[355131783,1740931850820,-1015.63,0.00027397,2]
[355131784,1740931850830,-879.33,0.00027397,2]
[355131785,1740931850840,-323.669162,0.00027397,120]
[355131786,1740931850850,-168.23,0.000274,2]
[355131787,1740931850861,-168.23,0.000274,2]
[355131788,1740931850870,-168.23,0.000274,2]
[355131789,1740931850880,-168.23,0.000274,2]
[355131790,1740931850890,-168.23,0.000274,2]
[355131791,1740931850904,-168.23,0.000274,2]
[355131792,1740931850915,-168.23,0.000274,2]
[355131793,1740931850926,-1000.0,0.00027452,5]
[355131794,1740931850935,-1000.0,0.00027452,5]
[355131795,1740931850946,-454.3011304,0.00027452,5]
[355131796,1740931850956,-1000.0,0.00027452,5]
[355131797,1740931850967,-487.9702186,0.00027452,5]
[355131798,1740931850978,-1000.0,0.00027452,5]
[355131799,1740931850987,-1000.0,0.00027452,5]
[355131800,1740931850998,-959.33077791,0.00027452,5]
[355131801,1740931851008,-1104.25628213,0.00027452,5]
[355131802,1740931851018,-1000.0,0.00027452,5]
[355131803,1740931851032,-44670.20870771,0.000275,2]
[355131804,1740931851041,-777.29139865,0.000275,30]
[355131805,1740931851051,-700.0,0.000275,10]
[355131806,1740931851061,-700.0,0.000275,10]
[355131807,1740931851070,-700.0,0.000275,10]
[355131808,1740931851080,-700.0,0.000275,10]
[355131809,1740931851090,-700.0,0.000275,10]
[355131810,1740931851099,-700.0,0.000275,10]
[355131811,1740931851109,-700.0,0.000275,10]
[355131812,1740931851118,-700.0,0.000275,10]
[355131813,1740931851128,-700.0,0.000275,10]
[355131814,1740931851138,-700.0,0.000275,10]
[355131815,1740931851148,-700.0,0.000275,10]
[355131816,1740931851158,-700.0,0.000275,10]
[355131817,1740931851168,-700.0,0.000275,10]
[355131818,1740931851177,-700.0,0.000275,10]
[355131819,1740931851187,-500.0,0.000275,10]
[355131820,1740931851197,-500.0,0.000275,10]
[355131821,1740931851207,-500.0,0.000275,10]
[355131822,1740931851217,-500.0,0.000275,10]
[355131823,1740931851227,-500.0,0.000275,10]
[355131824,1740931851237,-500.0,0.000275,10]
[355131825,1740931851246,-500.0,0.000275,10]
[355131826,1740931851257,-500.0,0.000275,10]
[355131827,1740931851266,-500.0,0.000275,10]
[355131828,1740931851279,-500.0,0.000275,10]
[355131829,1740931851289,-500.0,0.000275,10]
[355131830,1740931851300,-500.0,0.000275,10]
[355131831,1740931851310,-1000.0,0.00027652,5]
[355131832,1740931851320,-1000.0,0.00027652,5]
[355131833,1740931851330,-1000.0,0.00027652,5]
[355131834,1740931851339,-372.61294287,0.00027652,5]
[355131835,1740931851350,-1000.0,0.00027652,5]
[355131836,1740931851361,-1000.0,0.00027652,5]
[355131837,1740931851372,-1420.55,0.00027671,2]
[355131838,1740931851382,-2499.17,0.00027671,2]
[355131839,1740931851392,-1441.92,0.00027671,2]
[355131840,1740931851403,-2250.15,0.00027671,2]
[355131841,1740931851413,-222.8,0.00027671,2]
[355131842,1740931851422,-731.56,0.00027671,2]
[355131843,1740931851432,-731.27,0.00027671,2]
[355131845,1740931851442,-2383.43,0.00027671,2]
[355131846,1740931851452,-2642.29,0.00027671,2]
[355131847,1740931851463,-1052.64,0.00027671,2]
[355131848,1740931851474,-1268.84,0.00027671,2]
[355131849,1740931851484,-1701.5,0.00027671,2]
[355131850,1740931851494,-1699.9,0.00027671,2]
[355131851,1740931851504,-3994.28,0.00027671,2]
[355131852,1740931851514,-34644.2,0.00027671,2]
[355131853,1740931851524,-500.0,0.00027671,2]
[355131854,1740931851536,-835.41,0.00027671,2]
[355131855,1740931851547,-500.0,0.00027671,2]
[355131856,1740931851557,-1179.27,0.00027671,2]
[355131857,1740931851567,-751.4,0.00027671,2]
[355131858,1740931851577,-708.51,0.00027671,2]
[355131859,1740931851587,-2272.72,0.00027671,2]
[355131860,1740931851597,-485.53964125,0.00027671,2]
[355131861,1740931851607,-1043.26,0.00027671,2]
[355131862,1740931851618,-797.53,0.00027671,2]
[355131863,1740931851628,-1015.63,0.00027671,2]
[355131864,1740931851638,-879.33,0.00027671,2]
[355131865,1740931851648,-150.0,0.00027853,2]
[355131866,1740931851658,-150.0,0.00027853,2]
[355131867,1740931851668,-2500.0,0.00027945,3]
[355131868,1740931851678,-2500.0,0.00027945,3]
[355131869,1740931851687,-165.39970474,0.00027945,3]
[355131870,1740931851698,-1420.55,0.00027945,2]
[355131871,1740931851708,-2500.0,0.00027945,3]
[355131872,1740931851718,-2499.17,0.00027945,2]
[355131873,1740931851728,-1441.92,0.00027945,2]
[355131874,1740931851738,-2250.15,0.00027945,2]
[355131875,1740931851747,-731.56,0.00027945,2]
[355131876,1740931851757,-731.27,0.00027945,2]
[355131877,1740931851768,-2383.43,0.00027945,2]
[355131878,1740931851779,-2642.29,0.00027945,2]
[355131879,1740931851789,-1052.64,0.00027945,2]
[355131880,1740931851799,-1268.84,0.00027945,2]
[355131881,1740931851808,-1701.5,0.00027945,2]
[355131882,1740931851819,-1699.9,0.00027945,2]
[355131883,1740931851828,-3994.28,0.00027945,2]
[355131884,1740931851840,-34644.2,0.00027945,2]
[355131885,1740931851850,-246.10650609,0.00027945,2]
[355131886,1740931851859,-835.41,0.00027945,2]
[355131887,1740931851870,-500.0,0.00027945,2]
[355131888,1740931851882,-1179.27,0.00027945,2]
[355131889,1740931851892,-751.4,0.00027945,2]
[355131890,1740931851903,-708.51,0.00027945,2]
[355131891,1740931851912,-2272.72,0.00027945,2]
[355131892,1740931851923,-1043.26,0.00027945,2]
[355131893,1740931851933,-797.53,0.00027945,2]
[355131894,1740931851942,-1015.63,0.00027945,2]
[355131895,1740931851952,-879.33,0.00027945,2]
[355131896,1740931851963,-32219.93518821,0.0002799,2]
[355131897,1740931851973,-1175.9962099,0.0002799,7]
[355131898,1740931851983,-1171.43495179,0.0002799,2]
[355131899,1740931851992,-25000.0,0.00028,9]
[355131900,1740931852004,-10000.0,0.00028,3]
[355131901,1740931852013,-2053.0,0.00028,13]
[355131902,1740931852024,-2500.0,0.00028049,3]
[355131903,1740931852037,-1420.63,0.00028219,2]
[355131904,1740931852047,-2499.18318881,0.00028219,2]
[355131905,1740931852057,-1441.95571358,0.00028219,2]
[355131906,1740931852068,-2250.31723341,0.00028219,2]
[355131907,1740931852077,-731.63,0.00028219,2]
[355131908,1740931852088,-731.33703566,0.00028219,2]
[355131909,1740931852098,-2383.61747503,0.00028219,2]
[355131910,1740931852150,-2642.39380745,0.00028219,2]
[355131911,1740931852160,-1052.83029593,0.00028219,2]
[355131912,1740931852170,-1268.95,0.00028219,2]
[355131913,1740931852180,-1701.51347367,0.00028219,2]
[355131914,1740931852189,-1700.12999999,0.00028219,2]
[355131915,1740931852199,-3994.29002,0.00028219,2]
[355131916,1740931852208,-34644.37075422,0.00028219,2]
[355131917,1740931852217,-835.54,0.00028219,2]
[355131918,1740931852227,-193.67,0.00028219,2]
[355131919,1740931852236,-1179.31446645,0.00028219,2]
[355131920,1740931852246,-751.4,0.00028219,2]
[355131921,1740931852255,-708.52051653,0.00028219,2]
[355131922,1740931852265,-2272.88,0.00028219,2]
[355131923,1740931852274,-1043.48146257,0.00028219,2]
[355131924,1740931852286,-797.63111604,0.00028219,2]
[355131925,1740931852295,-1015.8,0.00028219,2]
[355131926,1740931852305,-879.445798,0.00028219,2]
[355131927,1740931852314,-1560.31556793,0.000285,7]
[355131928,1740931852324,-219.0,0.00028756,2]
[355131929,1740931852334,-165.45786287,0.000288,7]
[355131930,1740931852343,-195.95,0.000288,7]
[355131931,1740931852354,-2374.21302003,0.000289,2]
[355131932,1740931852364,-219.0,0.00028997,2]
[355131933,1740931852374,-25000.0,0.00029,10]
[355131934,1740931852384,-10000.0,0.00029,3]
[355131935,1740931852394,-600.0,0.00029,2]
[355131936,1740931852403,-160.0,0.00029,10]
[355131937,1740931852413,-2053.0,0.000295,14]
[355131938,1740931852422,-1152.0,0.00029597,2]
[355131939,1740931852433,-2848.35484283,0.00029603,2]
[355131940,1740931852443,-25000.0,0.0003,11]
[355131941,1740931852452,-785.999999,0.0003,2]
[355131942,1740931852462,-1000.0,0.0003,2]
[355131943,1740931852471,-500.0,0.0003,10]
[355131944,1740931852480,-500.0,0.0003,7]
[355131945,1740931852490,-2000.19,0.0003,7]
[355131946,1740931852500,-10000.0,0.0003,5]
[355131947,1740931852510,-248.63689589,0.0003,2]
[355131948,1740931852520,-240.0,0.0003,2]
[355131949,1740931852533,-2000.0,0.0003,4]
[355131950,1740931852543,-157.048702,0.0003012,2]
[355131951,1740931852553,-300.0,0.00030136,120]
[355131952,1740931852563,-219.0,0.00030447,2]
[355131953,1740931852572,-1000.0,0.000305,14]
[355131954,1740931852582,-150.0,0.00030853,2]
[355131955,1740931852592,-150.0,0.00030853,2]
[355131956,1740931852602,-200.0,0.00031,2]
[355131957,1740931852612,-1000.0,0.00031,14]
[355131958,1740931852622,-2053.0,0.00031,15]
[355131959,1740931852632,-160.0,0.00031205,3]
[355131960,1740931852641,-195.95,0.000315,7]
[355131961,1740931852652,-160.0,0.0003177,4]
[355131962,1740931852662,-323.669162,0.00031963,120]
[355131963,1740931852672,-1000.0,0.00032,2]
[355131964,1740931852682,-2730.0,0.00032,120]
[355131965,1740931852691,-10000.0,0.00032,5]
[355131966,1740931852701,-19629.85965445,0.00032,120]
[355131967,1740931852711,-160.0,0.00032,120]
[355131968,1740931852720,-1613.0,0.0003219,2]
[355131969,1740931852730,-656.29987,0.000323,120]
[355131970,1740931852739,-160.0,0.00032335,5]
[355131971,1740931852749,-1000.0,0.000325,2]
[355131972,1740931852758,-2053.0,0.000325,16]
[355131973,1740931852767,-2000.0,0.000325,4]
[355131974,1740931852780,-200.0,0.000328,2]
[355131975,1740931852790,-1491.82043814,0.00032876,2]
[355131976,1740931852799,-2998.71096746,0.00032876,2]
[355131977,1740931852809,-2998.71096746,0.00032876,2]
[355131978,1740931852819,-2998.71096746,0.00032876,2]
[355131979,1740931852829,-506.56706393,0.00032876,2]